Cogmind - Beta 11 @@@ ROGUE MODE // 2022.03.31 @ 19:09:09 Player: CrossedViper Result: Destroyed by P-80 Master with Gamma Rifle Performance ------------- Evolutions (9) 4500 Regions Visited (22) 4400 Robots Destroyed (261) 1305 Value Destroyed (10293) 10293 Prototype IDs (39) 780 Alien Tech Used (1) 200 Bonus (4559) 4559 TOTAL SCORE: 26037 Bonus ------- High Alert Combat Kills 2119 Follower Combat Kills 2812 Entered DSFs 500 Network Hubs Disabled 200 A7 Reached Mainframe 300 Met R17 at Cetus 500 Scanned by Researcher 500 Friendly Fire -2372 Cogmind --------- Core Integrity 0/1600 Matter 207/300 Energy 24/100 System Corruption 4% Temperature Cool (0) Movement Core (100) Ox1 Location -1/Access Parts ------- > --- POWER (3) -------- (None) > --- PROPULSION (6) --- (None) > --- UTILITY (10) ----- Faulty Experimental Optical Array Advanced Target Analyzer Armor Integrity Analyzer > --- WEAPON (6) ------- Enhanced Quantum Rifle > --- INVENTORY (5) ---- Enhanced Quantum Rifle Peak State ------------ > --- POWER ------------ Quantum Reactor Quantum Reactor > --- PROPULSION ------- Advanced Heavy Treads Advanced Heavy Treads Centrium Heavy Treads > --- UTILITY ---------- Advanced Heat Sink Advanced Heat Sink Huge Storage Unit Experimental Signal Interpreter Armor Integrity Analyzer Centrium Medium Armor Plating Experimental Focal Shield > --- WEAPON ----------- Advanced KE Penetrator Advanced KE Penetrator Advanced KE Penetrator Advanced KE Penetrator Advanced KE Penetrator Advanced KE Penetrator > --- INVENTORY -------- Armored Heavy Treads Advanced Heavy Treads Advanced Heavy Treads Long-range Sensor Array Experimental ECM Suite Damper Plating High-powered Tractor Beam Advanced Variable Charge Gun Neutron Cannon Advanced KE Penetrator Advanced KE Penetrator Advanced KE Penetrator Heavy Assault Cannon Heavy Proton Missile Launcher Precision Rocket Launcher Plasma Cutter [Rating: 171] Favorites ----------- Power Quantum Reactor Engine Heavy Ion Engine Power Core Enhanced Nuclear Core Reactor Quantum Reactor Propulsion Light Treads Treads Light Treads Leg Biometal Leg Wheel Armored Huge Wheel Hover Unit Antigrav Array Flight Unit Cooled Field Propulsion Drive Utility Armor Integrity Analyzer Device Advanced Heat Sink Storage High-capacity Storage Unit Processor Armor Integrity Analyzer Hackware System Shield Protection Centrium Medium Armor Plating Weapon Advanced KE Penetrator Energy Gun Heavy Laser Energy Cannon Neutron Cannon Ballistic Gun Advanced KE Penetrator Ballistic Cannon Heavy Assault Cannon Launcher Mini Grenade Launcher Build | -11 -10 -9 -9 -8 -7 -7 -6 -6 -6 -6 -6 -5 -4 -4 -4 -4 -3 -3 -2 -2 -2 -1 ------- Run | Scr Mat Mat Min Mat Fac Sto Fac Ext Cet Arc Hub Fac Fac Was Fac DSF Res Tes Res Qua Sec Acc Slots Evolved 18 | . . 2 . 2 2 . 2 . . . . 2 2 . . . 2 . 2 . . 2 Power 2 | . . . . . . . . . . . . 1 . . . . . . . . . 1 Propulsion 4 | . . 1 . . . . 1 . . . . . 2 . . . . . . . . . Utility 8 | . . . . 1 1 . 1 . . . . . . . . . 2 . 2 . . 1 Weapon 4 | . . 1 . 1 1 . . . . . . 1 . . . . . . . . . . Parts Attached 272 | 6 3 7 1 26 8 28 9 20 9 8 9 16 11 2 . 3 49 17 1 3 25 11 Power 22 | 1 . 2 . 1 1 3 . 3 1 . . . 1 . . . 3 2 . . 4 . Engine 10 | 1 . 2 . 1 1 2 . 3 . . . . . . . . . . . . . . Core 1 | . . . . . . 1 . . . . . . . . . . . . . . . . Reactor 11 | . . . . . . . . . 1 . . . 1 . . . 3 2 . . 4 . Propulsion 80 | 2 1 2 1 4 2 5 5 6 3 2 2 4 2 2 . 2 14 7 1 . 8 5 Treads 52 | 2 . 2 1 4 1 4 5 6 3 2 2 4 2 2 . 2 4 1 1 . 1 3 Leg 7 | . . . . . . . . . . . . . . . . . . . . . 6 1 Wheel 2 | . 1 . . . 1 . . . . . . . . . . . . . . . . . Hover 4 | . . . . . . 1 . . . . . . . . . . . 2 . . 1 . Flight 15 | . . . . . . . . . . . . . . . . . 10 4 . . . 1 Utility 57 | 1 1 1 . 6 1 3 2 3 1 3 . 3 2 . . . 21 2 . 1 4 2 Device 36 | . . 1 . 4 1 3 . 1 1 3 . 2 1 . . . 13 2 . . 3 1 Storage 4 | 1 1 . . 1 . . . . . . . 1 . . . . . . . . . . Processor 9 | . . . . 1 . . 1 1 . . . . . . . . 3 . . 1 1 1 Hackware 3 | . . . . . . . 1 1 . . . . . . . . 1 . . . . . Protection 5 | . . . . . . . . . . . . . 1 . . . 4 . . . . . Artifact . | . . . . . . . . . . . . . . . . . . . . . . . Weapon 113 | 2 1 2 . 15 4 17 2 8 4 3 7 9 6 . . 1 11 6 . 2 9 4 Energy Gun 52 | 1 1 2 . 8 2 12 1 7 2 2 5 2 . . . . . 2 . 2 1 2 Energy Cannon 11 | . . . . 1 . . . . . . . 1 . . . 1 2 2 . . 2 2 Ballistic Gun 39 | 1 . . . 5 2 4 1 1 1 1 1 3 6 . . . 8 . . . 5 . Ballistic Cannon 3 | . . . . . . 1 . . 1 . 1 . . . . . . . . . . . Launcher 8 | . . . . 1 . . . . . . . 3 . . . . 1 2 . . 1 . Special Weapon . | . . . . . . . . . . . . . . . . . . . . . . . Impact Weapon . | . . . . . . . . . . . . . . . . . . . . . . . Slashing Weapon . | . . . . . . . . . . . . . . . . . . . . . . . Piercing Weapon . | . . . . . . . . . . . . . . . . . . . . . . . Special Melee Weapon . | . . . . . . . . . . . . . . . . . . . . . . . Unidentified Prototypes 30 | . . 1 . 2 . 5 . . . . 4 3 1 . . . 6 4 . 1 2 1 Corrupted Parts 4 | . . . . . . . . . . . 4 . . . . . . . . . . . System Corruption 17 | . . . . . . . . . . . 17 . . . . . . . . . . . Parts Lost 101 | . 1 1 . 7 2 5 . 9 3 . . . 1 . . . 28 8 . 3 24 9 Power 10 | . 1 . . . . . . . . . . . . . . . 3 3 . . 3 . Propulsion 43 | . . 1 . 4 1 1 . 4 3 . . . . . . . 11 2 . 1 9 6 Utility 17 | . . . . 1 . 1 . 2 . . . . . . . . 5 1 . . 6 1 Weapon 31 | . . . . 2 1 3 . 3 . . . . 1 . . . 9 2 . 2 6 2 Highest Loss Streak 24 | . 1 1 . 3 1 2 . 3 2 . . . 1 . . . 24 4 . 3 11 6 To Critical Strikes 3 | . . . . . . . . . 1 . . . . . . . . . . . 2 . Average Slot Usage (%) 83 | . 84 99 100 98 96 90 93 97 97 99 99 93 92 86 . 84 77 44 34 37 37 22 Engine 4 | . 13 11 11 9 7 6 6 5 2 . . . . . . . . . . . . . Reactor 2 | . . . . . . . . . 3 6 6 5 10 10 . 10 8 2 . . 3 . Treads 18 | . 27 27 33 25 16 6 20 25 24 26 25 22 26 17 . 15 12 . 2 3 1 5 Wheel 1 | . . 4 . . 2 7 1 . . . . . . . . . . . . . . . Flight 1 | . . . . . . . . . . . . . . . . . 1 12 13 12 3 1 Device 9 | . . 11 11 15 15 14 13 5 5 10 13 13 12 10 . 10 11 7 4 4 2 . Storage 5 | . 14 11 11 9 7 7 6 6 6 6 6 5 5 5 . 5 3 . . . . . Processor 7 | . . . . 2 7 7 11 8 13 13 13 8 5 5 . 5 8 9 8 10 14 14 Hackware 1 | . . . . . . . . 9 6 1 . . . . . . . 4 4 4 3 . Energy Gun 16 | . 14 33 33 28 19 23 25 26 27 26 25 16 . . . . . 1 . 1 . . Ballistic Gun 10 | . 14 . . 4 18 12 5 5 4 6 6 14 27 31 . 27 23 . . . 2 . Naked Turns . | . . . . . . . . . . . . . . . . . . . . . . . Heaviest Build 170 | 10 26 35 35 64 69 77 77 74 82 86 88 137 165 165 165 168 170 34 1 11 53 . Greatest Support 220 | 40 40 60 60 60 60 28 80 88 80 86 128 128 169 220 220 220 220 75 20 75 75 15 Greatest Overweight (x) 3 | . 2 2 . 1 2 2 2 1 1 1 . 1 . . . . 1 . . . 3 . Average Overweight (x) . | . . . . . 1 2 . . . . . . . . . . . . . . . . Largest Inventory Capacity 25 | 8 15 15 15 20 20 20 20 20 20 20 20 25 25 25 25 25 25 5 5 5 5 5 Average Capacity 17 | 6 10 15 15 19 20 20 20 20 20 20 20 21 25 25 25 25 23 5 5 5 5 5 Most Carried 25 | 5 8 15 15 20 20 20 20 20 20 20 20 20 23 23 23 25 25 5 5 5 5 5 Average Carried 15 | 2 7 10 15 14 18 19 17 18 19 19 19 18 20 22 23 24 21 4 3 4 2 4 Final Capacity 25 | 8 15 15 15 20 20 20 20 20 20 20 20 25 25 25 25 25 5 5 5 5 5 5 Final Carried 25 | 4 8 15 15 20 19 20 18 17 20 20 18 20 23 23 23 25 2 4 4 5 3 1 Class Distribution -------------------- 41% | Scavenger-Gunner 23% | Scavenger-Executioner 17% | Mutant 9% | Gunner 4% | Scavenger-Mutant 3% | Commander-Gunner Dominant Class ---------------- Mutant | -10/Materials Gunner | -9/Materials Gunner | -9/Mines Scavenger-Gunner | -8/Materials Scavenger-Gunner | -7/Factory Scavenger-Gunner | -7/Storage Scavenger-Gunner | -6/Factory Scavenger-Gunner | -6/Extension Scavenger-Gunner | -6/Cetus Scavenger-Gunner | -6/Archives Scavenger-Gunner | -6/Hub_04(d) Scavenger-Executioner | -5/Factory Scavenger-Executioner | -4/Factory Scavenger-Executioner | -4/Waste Scavenger-Executioner | -4/Factory Scavenger-Executioner | -4/DSF Scavenger-Executioner | -3/Research Mutant | -3/Testing Mutant | -2/Research Mutant | -2/Quarantine Mutant | -2/Section 7 Mutant | -1/Access Resources | -11 -10 -9 -9 -8 -7 -7 -6 -6 -6 -6 -6 -5 -4 -4 -4 -4 -3 -3 -2 -2 -2 -1 ----------- Run | Scr Mat Mat Min Mat Fac Sto Fac Ext Cet Arc Hub Fac Fac Was Fac DSF Res Tes Res Qua Sec Acc Matter Collected 6481 | 240 52 139 10 288 207 719 86 284 101 85 151 283 404 332 . 113 2256 . . . 676 55 Remotely 1167 | . . . . . . . . . . . . . 10 . . . 1157 . . . . . Salvage Created 13944 | . 222 673 60 1097 384 1200 107 1441 203 . 706 579 567 1593 . 192 4142 91 . . 687 . Parts 538 | . 7 28 7 45 13 64 6 67 7 . 32 17 18 32 . 3 161 7 . . 24 . Haulers Intercepted 17 | . . 3 . . . 3 . 1 . . 2 1 1 . . . 6 . . . . . Recyclers Shooed 9 | . 1 . . . . 2 . 1 . . 1 . 1 . . . 1 1 . . . 1 Parts Field Recycled . | . . . . . . . . . . . . . . . . . . . . . . . Retrieved Matter . | . . . . . . . . . . . . . . . . . . . . . . . Parts Self-Destructed . | . . . . . . . . . . . . . . . . . . . . . . . Prevented . | . . . . . . . . . . . . . . . . . . . . . . . Kills | -11 -10 -9 -9 -8 -7 -7 -6 -6 -6 -6 -6 -5 -4 -4 -4 -4 -3 -3 -2 -2 -2 -1 ------- Run | Scr Mat Mat Min Mat Fac Sto Fac Ext Cet Arc Hub Fac Fac Was Fac DSF Res Tes Res Qua Sec Acc Combat Hostiles Destroyed 173 | . 4 12 3 19 8 17 1 19 4 . 4 9 3 6 . 2 47 6 . . 9 . Melee 1 | . 1 . . . . . . . . . . . . . . . . . . . . . Guns 144 | . 3 11 3 14 8 17 1 16 3 . 3 5 3 6 . 2 47 . . . 2 . Cannons 9 | . . . . 2 . . . . . . . . . . . . . 1 . . 6 . AOE 10 | . . . . . . . . . . . . 4 . . . . . 5 . . 1 . Classes Destroyed 21 | . 2 4 1 3 1 2 1 2 . . . 1 . 1 . 2 1 . . . . . Worker 25 | . . . . 1 . 3 . . . . 2 1 . . . . 18 . . . . . Builder 14 | . . . . . . 2 . 4 . . 2 1 . . . . 5 . . . . . Tunneler 3 | . . . 1 . . . . . . . . 1 . . . . 1 . . . . . Hauler 17 | . . 3 . . . 3 . 1 . . 2 1 1 . . . 6 . . . . . Recycler 12 | . 1 . . 3 1 2 . 2 . . . 1 2 . . . . . . . . . Operator 2 | . . . . . . . 1 . . . . . 1 . . . . . . . . . Watcher 8 | . . 3 . . 1 1 1 1 . . 1 . . . . . . . . . . . Swarmer 37 | . . 3 3 3 3 . . 6 1 . . . . . . . 13 5 . . . . Saboteur 1 | . . . . . . . . . . . . 1 . . . . . . . . . . Grunt 53 | . 4 6 . 8 2 9 . 1 . . 1 7 1 . . 1 12 1 . . . . Brawler 1 | . . . . . . . . . . . . . . . . 1 . . . . . . Duelist 2 | . . . . . . . . . . . 1 . . . . . 1 . . . . . Protector 1 | . . . . . . . . . . . . . . . . . 1 . . . . . Sentry 30 | . . 3 . 5 1 7 1 9 . . 2 . . . . . 1 . . . 1 . Specialist 2 | . . . . 2 . . . . . . . . . . . . . . . . . . Hunter 19 | . . . . . . 1 . . . . . 1 2 . . . 11 . . . 4 . Programmer 11 | . . . . . 2 . . 1 . . . . . . . . 4 . . . 4 . Heavy 2 | . . . . 1 . . . . . . . . . . . . 1 . . . . . Behemoth 3 | . . . . . . . . 2 . . . . . . . . 1 . . . . . Compactor 6 | . . . . . . . . . . . . . . 6 . . . . . . . . Cetus Guard 3 | . . . . . . . . . 3 . . . . . . . . . . . . . Enhanced Grunt 1 | . . . . . . . . . . . 1 . . . . . . . . . . . Thug 4 | . . . . . . . . . . . . . . . . . 4 . . . . . Butcher 1 | . . . . . . . . 1 . . . . . . . . . . . . . . Martyr 1 | . . . . . . . . . . . . . . . . 1 . . . . . . Guerrilla 1 | . . . . . . . . . . . 1 . . . . . . . . . . . Best Kill Streak 21 | . 3 6 3 6 3 6 1 7 2 . 2 5 3 3 . 2 21 5 . . 2 . Combat Bots Only 9 | . 2 6 3 4 3 4 1 3 2 . 2 5 2 3 . 2 9 5 . . 2 . Max Kills in Single Turn 4 | . 1 1 1 1 1 2 1 2 1 . 3 2 2 1 . 2 4 3 . . 1 . Gunslinging 2 | . . . . . . . . 1 . . . . 1 . . 1 2 . . . . . Exploded 3 | . . . . . . . . . . . . 2 . . . . . 3 . . 1 . Melee 1 | . 1 . . . . . . . . . . . . . . . . . . . . . Uniques/NPCs Destroyed 1 | . . . . . . . . . 1 . . . . . . . . . . . . . Revision 17 (-6/Cetus) Combat | -11 -10 -9 -9 -8 -7 -7 -6 -6 -6 -6 -6 -5 -4 -4 -4 -4 -3 -3 -2 -2 -2 -1 -------- Run | Scr Mat Mat Min Mat Fac Sto Fac Ext Cet Arc Hub Fac Fac Was Fac DSF Res Tes Res Qua Sec Acc Damage Taken 27994 | . 347 467 102 1134 745 1254 101 1809 285 . 411 532 308 . . 102 9777 1549 113 569 4148 4241 Core 5030 | . 84 90 . 174 65 115 12 245 16 . 20 19 . . . . 883 366 2 283 1053 1603 Absorbed by Shields 116 | . . . . . . . . 33 83 . . . . . . . . . . . . . Reduced by Siege Mode 476 | . . . . . . . . . . . . . 6 . . . 422 . . . 48 . Regen/Repaired (Parts) 279 | . . . . . . . . . . . . 279 . . . . . . . . . . Core Remaining (%) 66 | 100 66 . 77 68 . 74 . . . . 65 98 . . . 100 . 3 . . 13 . Volleys Fired 476 | . 16 36 12 53 21 49 4 45 10 1 18 18 11 13 . 6 82 8 . 2 66 5 Largest 6 | . 2 3 3 4 5 5 5 5 5 2 5 6 6 6 . 6 6 3 . 2 3 1 Hottest 390 | . 60 150 150 227 237 315 304 367 384 103 350 390 300 210 . 265 265 178 . 130 183 120 Shots Fired 1838 | . 30 108 36 205 99 198 16 183 39 2 90 79 59 78 . 34 464 10 . 4 99 5 Gun 1729 | . 30 108 36 195 99 194 15 183 37 2 90 70 51 78 . 31 457 2 . 4 46 1 Cannon 96 | . . . . 9 . 4 1 . 2 . . 5 8 . . 3 3 6 . . 51 4 Launcher 13 | . . . . 1 . . . . . . . 4 . . . . 4 2 . . 2 . Special . | . . . . . . . . . . . . . . . . . . . . . . . Kinetic 919 | . 16 . . 16 47 95 4 22 4 1 18 38 50 78 . 31 457 . . . 42 . Thermal 902 | . 14 108 36 188 52 103 12 161 35 1 72 37 9 . . 3 3 8 . . 55 5 Explosive 13 | . . . . 1 . . . . . . . 4 . . . . 4 2 . . 2 . Electromagnetic 4 | . . . . . . . . . . . . . . . . . . . . 4 . . Robot Hit Streak 23 | . 8 15 8 17 23 18 10 15 13 4 21 11 11 22 . 5 22 10 . 11 9 . Robot Miss Streak 13 | . 2 4 2 6 3 7 1 13 2 2 4 5 6 3 . 1 8 . . 3 4 . Penetration Max 1 | . . . . 1 . . . 1 . . 1 . 1 . . 1 1 . . . 1 . Secondary Targets 40 | . . 4 1 . 1 2 . 4 1 . . . 1 . . 2 24 . . . . . Max Gunslinging Chain 2 | . . 1 1 . 1 1 . 1 1 . . . 1 . . 2 2 . . . . . Shots Hit Robots 1134 | . 22 73 24 119 67 136 10 122 35 2 55 42 35 55 . 4 265 9 . 1 58 . Core Hits 609 | . 10 27 7 50 20 83 6 71 29 2 25 31 22 18 . 3 170 10 . 1 23 1 Critical Kills 28 | . . . . . . . . . . . 1 . 1 2 . . 24 . . . . . Critical Parts Destroyed 45 | . . . . . . . . 1 . . . 1 2 2 . 1 38 . . . . . Critical Strikes 119 | . . 7 2 13 2 1 . 11 3 . 4 1 3 8 . 1 63 . . . . . Burn 41 | . . 7 2 13 2 1 . 10 3 . 3 . . . . . . . . . . . Destroy 78 | . . . . . . . . 1 . . 1 1 3 8 . 1 63 . . . . . Melee Attacks . | . . . . . . . . . . . . . . . . . . . . . . . Impact . | . . . . . . . . . . . . . . . . . . . . . . . Slashing . | . . . . . . . . . . . . . . . . . . . . . . . Piercing . | . . . . . . . . . . . . . . . . . . . . . . . Sneak Attacks . | . . . . . . . . . . . . . . . . . . . . . . . Combat Hostiles . | . . . . . . . . . . . . . . . . . . . . . . . Follow-up Attacks . | . . . . . . . . . . . . . . . . . . . . . . . Damage Inflicted 29919 | . 237 942 316 1897 1201 2478 230 2571 799 44 1671 1649 817 1496 . 251 9992 987 25 32 2235 49 Guns 24754 | . 213 942 309 1742 1201 2478 166 2545 799 44 1287 845 740 1496 . 214 8883 41 . 15 794 . Cannons 1811 | . . . . 143 . . 63 . . . . 73 35 . . 37 . 225 . . 1235 . Explosions 2984 | . . . . . . . . . . . 290 722 42 . . . 1049 712 . . 169 . Melee . | . . . . . . . . . . . . . . . . . . . . . . . Ramming 370 | . 24 . 7 12 . . 1 26 . . 94 9 . . . . 60 9 25 17 37 49 Kinetic 14776 | . 88 . . 209 487 931 79 324 26 22 281 304 740 1496 . 214 8883 . . . 692 . Thermal 11816 | . 125 942 309 1676 714 1547 150 2221 773 22 1006 614 77 . . 37 . 266 . . 1337 . Explosive 2652 | . . . . . . . . . . . . 722 . . . . 1049 712 . . 169 . Electromagnetic 305 | . . . . . . . . . . . 290 . . . . . . . . 15 . . Impact . | . . . . . . . . . . . . . . . . . . . . . . . Slashing . | . . . . . . . . . . . . . . . . . . . . . . . Piercing . | . . . . . . . . . . . . . . . . . . . . . . . Highest Corruption 28 | . 1 . . . 2 7 . . . . 19 . . . . . 16 28 . 5 13 4 Average Corruption 6 | . 1 . . . 1 4 . . . . 4 . . . . . 4 21 . 3 8 1 Corruption Purged . | . . . . . . . . . . . . . . . . . . . . . . . Corruption Blocked . | . . . . . . . . . . . . . . . . . . . . . . . Effects 81 | . 1 . . . 6 17 . . . . 1 . . . . . 11 22 . 2 21 . Message Errors 20 | . . . . . 3 5 . . . . 1 . . . . . . 5 . 1 5 . Matter Fused 12 | . . . . . 1 3 . . . . . . . . . . 1 1 . 1 5 . Heat Flow Errors 9 | . . . . . 1 3 . . . . . . . . . . 2 2 . . 1 . Energy Discharges 12 | . 1 . . . 1 2 . . . . . . . . . . 1 4 . . 3 . Parts Rejected 5 | . . . . . . . . . . . . . . . . . 2 2 . . 1 . Data Loss (minor) 4 | . . . . . . 1 . . . . . . . . . . 1 1 . . 1 . Data Loss (major) 4 | . . . . . . 2 . . . . . . . . . . . 1 . . 1 . Misfires 1 | . . . . . . . . . . . . . . . . . . . . . 1 . Misdirections 10 | . . . . . . . . . . . . . . . . . 3 6 . . 1 . Weapon Failures 4 | . . . . . . 1 . . . . . . . . . . 1 . . . 2 . Overload Shots 1 | . . . . . . . . . . . . . . . . . . . . . . 1 Overflow Damage 132 | . . . . . . . . . . . . 7 5 . . . 12 18 . . 90 . Projectiles 63 | . . . . . . . . . . . . 7 . . . . . . . . 56 . Explosions 57 | . . . . . . . . . . . . . 5 . . . . 18 . . 34 . Melee 12 | . . . . . . . . . . . . . . . . . 12 . . . . . Knockbacks 6 | . . . . . . . . 1 . . . 1 . . . . . . 1 1 2 . Impact 6 | . . . . . . . . 1 . . . 1 . . . . . . 1 1 2 . Kinetic . | . . . . . . . . . . . . . . . . . . . . . . . Secondary . | . . . . . . . . . . . . . . . . . . . . . . . Self-Inflicted Damage 542 | . . 21 . 44 . . . . . . 100 35 62 . . . . 112 9 . 136 23 Shots 9 | . . 1 . 1 . . . . . . 1 1 1 . . . . 2 . . 2 . Rammed 49 | . 4 1 1 1 . . 1 3 . . 5 1 . . . . 3 5 5 10 1 8 Targets Rammed 64 | . 5 1 1 1 . . 1 3 . . 5 2 . . . . 5 5 5 10 12 8 Kicked 11 | . . . . . . . . . . . . . . . . . . . . . 11 . Crushed 4 | . 1 . . . . . . . . . . 1 . . . . 2 . . . . . Highest Temperature 486 | . 117 341 260 348 160 395 114 486 200 21 414 186 7 . . 147 345 166 . . 423 32 Average Temperature 112 | . 45 101 90 123 25 106 70 143 111 14 141 82 3 . . 39 89 42 . . 158 18 Received Heat Transfer 2911 | . 111 174 . 414 90 438 21 413 18 . 108 126 9 . . 12 676 58 . 9 99 135 Effects 16 | . . 1 . 3 . 6 . 2 . . 1 . . . . . 1 . . . 2 . Shutdowns 2 | . . . . . . . . . . . 1 . . . . . . . . . 1 . Energy Bleed 2 | . . . . 1 . . . . . . . . . . . . . . . . 1 . Interference 9 | . . . . 1 . 6 . 2 . . . . . . . . . . . . . . Matter Decay 1 | . . 1 . . . . . . . . . . . . . . . . . . . . Short Circuit 1 | . . . . . . . . . . . . . . . . . 1 . . . . . Damage (minor) 1 | . . . . 1 . . . . . . . . . . . . . . . . . . Siege Activations 12 | . . . . . . . . . . . . . 1 2 . . 7 1 . . 1 . Total Turns 219 | . . . . . . . . . . . . . 9 71 . . 121 3 . . 15 . Longest Duration 67 | . . . . . . . . . . . . . 9 67 . . 23 3 . . 15 . Robots Corrupted . | . . . . . . . . . . . . . . . . . . . . . . . Combat Hostiles . | . . . . . . . . . . . . . . . . . . . . . . . Parts Fried . | . . . . . . . . . . . . . . . . . . . . . . . Impact Corruptions 1 | . . . . . . . . . . . . . . . . . 1 . . . . . Robots Melted 12 | . . 2 . 3 . . . 4 1 . 1 . . . . 1 . . . . . . Combat Hostiles 9 | . . 1 . 3 . . . 3 1 . 1 . . . . . . . . . . . Parts Melted 77 | . 1 14 . 23 7 5 . 16 3 . 3 . . . . . . . . . 5 . Heat Transferred 26553 | . 275 3219 1036 5254 1628 3468 296 5258 1879 37 1964 777 50 . . . . 228 . . 1184 . Parts Sabotaged . | . . . . . . . . . . . . . . . . . . . . . . . Parts Stolen . | . . . . . . . . . . . . . . . . . . . . . . . Parts Stripped . | . . . . . . . . . . . . . . . . . . . . . . . Power Chain Reactions . | . . . . . . . . . . . . . . . . . . . . . . . Missiles Intercepted . | . . . . . . . . . . . . . . . . . . . . . . . Alert | -11 -10 -9 -9 -8 -7 -7 -6 -6 -6 -6 -6 -5 -4 -4 -4 -4 -3 -3 -2 -2 -2 -1 ------- Run | Scr Mat Mat Min Mat Fac Sto Fac Ext Cet Arc Hub Fac Fac Was Fac DSF Res Tes Res Qua Sec Acc Peak Influence 1604 | . 172 530 364 421 301 578 382 600 973 555 1169 852 661 281 56 500 1604 844 436 380 432 639 Initial 844 | . . . 206 63 191 136 262 186 336 389 193 572 417 231 56 42 281 844 391 245 213 252 Average 391 | . 65 326 232 245 239 294 355 226 643 532 605 683 580 198 56 367 786 501 393 257 296 407 Maximum Alert Level 5 | . . 2 1 2 1 2 1 2 3 2 4 3 2 1 . 2 5 3 2 1 2 2 Low Security (%) 19 | 100 100 16 15 33 29 18 . 46 . . 5 . . 34 100 16 . . . . 16 . Level 1 44 | . . 43 84 50 70 61 100 46 5 2 14 . . 65 . 30 33 48 93 100 75 46 Level 2 24 | . . 39 . 15 . 19 . 7 48 97 56 46 100 . . 53 18 39 6 . 8 53 Level 3 8 | . . . . . . . . . 46 . 17 53 . . . . 15 11 . . . . Level 4 3 | . . . . . . . . . . . 5 . . . . . 32 . . . . . Level 5 . | . . . . . . . . . . . . . . . . . . . . . . . High Security . | . . . . . . . . . . . . . . . . . . . . . . . Max Security . | . . . . . . . . . . . . . . . . . . . . . . . Sterilizations 1 | . . . . . . . . . . . . . . . . 1 . . . . . . Squads Dispatched 54 | . 2 3 . 2 4 8 1 2 . . 4 2 2 . . 1 9 2 3 2 4 3 Investigation 10 | . 1 2 . . 1 3 . 1 . . . . . . . . . 1 1 . . . Extermination 10 | . . . . . 3 1 . . . . 1 . 1 . . . 1 . . 1 1 1 Reinforcement 28 | . 1 1 . 2 . 3 1 1 . . 3 1 1 . . 1 6 1 2 1 1 2 Assault 3 | . . . . . . . . . . . . 1 . . . . 2 . . . . . Garrison 3 | . . . . . . 1 . . . . . . . . . . . . . . 2 . Intercept . | . . . . . . . . . . . . . . . . . . . . . . . Searches Triggered 1 | . . . . . . . . . . . . . . . . . . . . . . 1 Construction Impeded 6 | . . . . . . 1 1 . . . 1 . . . . . 2 . . . 1 . Haulers Reinforced 5 | . . . . . . 1 . . . . . 1 1 . . . 1 1 . . . . Active Scanning Responses . | . . . . . . . . . . . . . . . . . . . . . . . Cargo Convoy Interrupts 1 | . . . . . . . . . . . . . . . . . 1 . . . . . Stealth | -11 -10 -9 -9 -8 -7 -7 -6 -6 -6 -6 -6 -5 -4 -4 -4 -4 -3 -3 -2 -2 -2 -1 --------- Run | Scr Mat Mat Min Mat Fac Sto Fac Ext Cet Arc Hub Fac Fac Was Fac DSF Res Tes Res Qua Sec Acc Distress Signals 31 | . 2 . . 6 . 3 . 2 2 . 1 . . . . . 7 2 . . 3 3 Communications Jammed . | . . . . . . . . . . . . . . . . . . . . . . . Distress Signals . | . . . . . . . . . . . . . . . . . . . . . . . Times Spotted 444 | . 14 21 4 30 12 28 3 43 28 3 24 20 4 5 . 8 93 19 4 17 21 43 Peak Tracking Total 16 | . 8 10 3 7 3 4 1 5 6 1 5 5 2 1 . 4 16 9 5 15 7 13 Tactical Retreats 36 | . 1 3 . 3 2 . . 3 . . 2 1 . . . . 5 . 1 2 3 10 Traps | -11 -10 -9 -9 -8 -7 -7 -6 -6 -6 -6 -6 -5 -4 -4 -4 -4 -3 -3 -2 -2 -2 -1 ------- Run | Scr Mat Mat Min Mat Fac Sto Fac Ext Cet Arc Hub Fac Fac Was Fac DSF Res Tes Res Qua Sec Acc Traps Triggered 14 | . 1 . . . . 7 1 1 . . . 1 1 . . . 1 . . . . 1 Indirectly . | . . . . . . . . . . . . . . . . . . . . . . . Trap Hack Attempts . | . . . . . . . . . . . . . . . . . . . . . . . Triggered . | . . . . . . . . . . . . . . . . . . . . . . . Disarmed . | . . . . . . . . . . . . . . . . . . . . . . . Reprogrammed . | . . . . . . . . . . . . . . . . . . . . . . . Reused . | . . . . . . . . . . . . . . . . . . . . . . . Traps Extracted . | . . . . . . . . . . . . . . . . . . . . . . . Installed . | . . . . . . . . . . . . . . . . . . . . . . . Triggered . | . . . . . . . . . . . . . . . . . . . . . . . Machines | -11 -10 -9 -9 -8 -7 -7 -6 -6 -6 -6 -6 -5 -4 -4 -4 -4 -3 -3 -2 -2 -2 -1 ---------- Run | Scr Mat Mat Min Mat Fac Sto Fac Ext Cet Arc Hub Fac Fac Was Fac DSF Res Tes Res Qua Sec Acc Machines Disabled 45 | . . 3 1 . . 4 . 2 2 1 16 4 4 . . . 4 2 . . 1 1 Max in Single Turn 12 | . . 2 . . . 1 . . 1 . 12 2 3 . . . 1 2 . . 1 1 Garrison Access 1 | . . . . . . . . . . . . . . . . . . 1 . . . . Network Hub 1 | . . . . . . . . . . . 1 . . . . . . . . . . . Energy Cycler 1 | . . . . . . . . 1 . . . . . . . . . . . . . . Machines Sabotaged . | . . . . . . . . . . . . . . . . . . . . . . . Garrisons Compromised . | . . . . . . . . . . . . . . . . . . . . . . . Overloaded Fab Kills . | . . . . . . . . . . . . . . . . . . . . . . . Hacking | -11 -10 -9 -9 -8 -7 -7 -6 -6 -6 -6 -6 -5 -4 -4 -4 -4 -3 -3 -2 -2 -2 -1 --------- Run | Scr Mat Mat Min Mat Fac Sto Fac Ext Cet Arc Hub Fac Fac Was Fac DSF Res Tes Res Qua Sec Acc Machines Accessed 51 | . 2 4 . . 3 7 2 16 1 . 2 1 . . 1 . 1 7 1 1 1 1 Terminals 46 | . 2 3 . . 3 6 2 16 1 . 2 . . . 1 . 1 5 1 1 1 1 Fabricators 1 | . . . . . . . . . . . . . . . . . . 1 . . . . Repair Stations 2 | . . . . . . 1 . . . . . 1 . . . . . . . . . . Recycling Units 1 | . . 1 . . . . . . . . . . . . . . . . . . . . Scanalyzers . | . . . . . . . . . . . . . . . . . . . . . . . Garrison Access 1 | . . . . . . . . . . . . . . . . . . 1 . . . . Total Hacks 154 | . 8 9 . . 7 14 4 37 3 . 4 2 . . 1 . 6 50 2 3 1 3 Successful 66 | . 2 6 . . 1 3 3 19 . . 1 2 . . 1 . 2 22 . 2 1 1 Failed 88 | . 6 3 . . 6 11 1 18 3 . 3 . . . . . 4 28 2 1 . 2 Catastrophic 18 | . . . . . 2 3 1 4 . . 1 . . . . . 1 3 1 1 . 1 Database Lockouts . | . . . . . . . . . . . . . . . . . . . . . . . Manual 56 | . 8 6 . . 3 2 3 15 1 . . . . . . . 6 9 . . 1 2 Terminals 143 | . 8 8 . . 7 13 4 37 3 . 4 . . . 1 . 6 43 2 3 1 3 Fabricators 3 | . . . . . . . . . . . . . . . . . . 3 . . . . Repair Stations 3 | . . . . . . 1 . . . . . 2 . . . . . . . . . . Recycling Units 1 | . . 1 . . . . . . . . . . . . . . . . . . . . Scanalyzers . | . . . . . . . . . . . . . . . . . . . . . . . Garrison Access 4 | . . . . . . . . . . . . . . . . . . 4 . . . . Terminal Hacks 55 | . 2 4 . . 1 3 2 19 . . 1 . . . 1 . 2 17 . 2 . 1 Record 1 | . . . . . . . . . . . . . . . . . . 1 . . . . Part Schematic 3 | . . . . . . 1 . 1 . . . . . . . . . 1 . . . . Robot Analysis 2 | . 2 . . . . . . . . . . . . . . . . . . . . . Prototype ID Bank 5 | . . 1 . . . . . 4 . . . . . . . . . . . . . . Open Door 10 | . . . . . . 1 1 8 . . . . . . . . . . . . . . Open DSF 1 | . . . . . . . . . . . . . . . 1 . . . . . . . Level Access Points 1 | . . . . . . . . . . . . . . . . . . 1 . . . . Branch Access Points 4 | . . 1 . . 1 . 1 . . . . . . . . . 1 . . . . . Emergency Access Points 1 | . . . . . . . . . . . . . . . . . . 1 . . . . Terminal Index 3 | . . 1 . . . . . 1 . . . . . . . . . 1 . . . . Alert Level 9 | . . . . . . . . 3 . . 1 . . . . . 1 3 . 1 . . Unreport Threat 6 | . . . . . . 1 . 1 . . . . . . . . . 4 . . . . Dispatch Records 2 | . . 1 . . . . . . . . . . . . . . . 1 . . . . Hauler Manifests 1 | . . . . . . . . . . . . . . . . . . 1 . . . . Registered Prototypes 1 | . . . . . . . . . . . . . . . . . . 1 . . . . Zone Layout 5 | . . . . . . . . 1 . . . . . . . . . 2 . 1 . 1 Fabricator Hacks . | . . . . . . . . . . . . . . . . . . . . . . . Repair Station Hacks 2 | . . . . . . . . . . . . 2 . . . . . . . . . . Scan Component 1 | . . . . . . . . . . . . 1 . . . . . . . . . . Repair 1 | . . . . . . . . . . . . 1 . . . . . . . . . . Recycling Unit Hacks . | . . . . . . . . . . . . . . . . . . . . . . . Scanalyzer . | . . . . . . . . . . . . . . . . . . . . . . . Garrison Access Hacks 1 | . . . . . . . . . . . . . . . . . . 1 . . . . Seal Access 1 | . . . . . . . . . . . . . . . . . . 1 . . . . Unauthorized Hacks 8 | . . 2 . . . . 1 . . . . . . . . . . 4 . . 1 . Terminals 7 | . . 1 . . . . 1 . . . . . . . . . . 4 . . 1 . Assimilate 3 | . . . . . . . . . . . . . . . . . . 2 . . 1 . Botnet 4 | . . 1 . . . . 1 . . . . . . . . . . 2 . . . . Fabricators . | . . . . . . . . . . . . . . . . . . . . . . . Repair Stations . | . . . . . . . . . . . . . . . . . . . . . . . Recycling Units 1 | . . 1 . . . . . . . . . . . . . . . . . . . . Tunnel 1 | . . 1 . . . . . . . . . . . . . . . . . . . . Scanalyzers . | . . . . . . . . . . . . . . . . . . . . . . . Garrison Access . | . . . . . . . . . . . . . . . . . . . . . . . Data Cores Recovered 1 | . . . . . . . 1 . . . . . . . . . . . . . . . Used . | . . . . . . . . . . . . . . . . . . . . . . . Hacking Detections 36 | . 2 3 . . 3 6 1 9 1 . 2 . . . . . 1 4 1 1 1 1 Full Trace Events 9 | . 1 1 . . 1 3 . 1 . . . . . . . . . 1 1 . . . Feedback Events . | . . . . . . . . . . . . . . . . . . . . . . . Feedback Blocked . | . . . . . . . . . . . . . . . . . . . . . . . Robot Schematics Acquired . | . . . . . . . . . . . . . . . . . . . . . . . Robots Built . | . . . . . . . . . . . . . . . . . . . . . . . Authchips . | . . . . . . . . . . . . . . . . . . . . . . . Time . | . . . . . . . . . . . . . . . . . . . . . . . Total Robot Build Rating . | . . . . . . . . . . . . . . . . . . . . . . . Part Schematics Acquired 3 | . . . . . . 1 . 1 . . . . . . . . . 1 . . . . Parts Built . | . . . . . . . . . . . . . . . . . . . . . . . Authchips . | . . . . . . . . . . . . . . . . . . . . . . . Time . | . . . . . . . . . . . . . . . . . . . . . . . Total Part Build Rating . | . . . . . . . . . . . . . . . . . . . . . . . Parts Repaired 1 | . . . . . . . . . . . . 1 . . . . . . . . . . Time 108 | . . . . . . . . . . . . 108 . . . . . . . . . . Parts Recycled . | . . . . . . . . . . . . . . . . . . . . . . . Recycled Matter . | . . . . . . . . . . . . . . . . . . . . . . . Retrieved Matter . | . . . . . . . . . . . . . . . . . . . . . . . Retrieved Components . | . . . . . . . . . . . . . . . . . . . . . . . Parts Scanalyzed . | . . . . . . . . . . . . . . . . . . . . . . . Part Schematics Acquired . | . . . . . . . . . . . . . . . . . . . . . . . Parts Damaged . | . . . . . . . . . . . . . . . . . . . . . . . Bothacking | -11 -10 -9 -9 -8 -7 -7 -6 -6 -6 -6 -6 -5 -4 -4 -4 -4 -3 -3 -2 -2 -2 -1 ------------ Run | Scr Mat Mat Min Mat Fac Sto Fac Ext Cet Arc Hub Fac Fac Was Fac DSF Res Tes Res Qua Sec Acc Used RIF Installer . | . . . . . . . . . . . . . . . . . . . . . . . Robots Hacked . | . . . . . . . . . . . . . . . . . . . . . . . Non-combat . | . . . . . . . . . . . . . . . . . . . . . . . Combat . | . . . . . . . . . . . . . . . . . . . . . . . Robot Hacks Applied . | . . . . . . . . . . . . . . . . . . . . . . . Relay Couplers Released . | . . . . . . . . . . . . . . . . . . . . . . . Fabnet Peak Effective % . | . . . . . . . . . . . . . . . . . . . . . . . Robots Rewired 8 | . . . . . . . . 8 . . . . . . . . . . . . . . Allies Hacked 2 | . . . . . . . . . . . . . . . . . 2 . . . . . Hacks Repelled . | . . . . . . . . . . . . . . . . . . . . . . . Allies | -11 -10 -9 -9 -8 -7 -7 -6 -6 -6 -6 -6 -5 -4 -4 -4 -4 -3 -3 -2 -2 -2 -1 -------- Run | Scr Mat Mat Min Mat Fac Sto Fac Ext Cet Arc Hub Fac Fac Was Fac DSF Res Tes Res Qua Sec Acc Total Allies 58 | . . . 1 . . 10 . 22 3 . . . . 19 . . . 2 . . 1 . Largest Group 19 | . . . 1 . . 10 4 10 8 4 3 1 . 19 . 19 7 2 . . 1 . Highest-Rated Group 702 | . . . 31 . . 173 77 440 546 385 226 96 . 702 . 702 317 71 . . 26 . Highest-Rated Ally 159 | . . . 31 . . 29 29 159 159 159 96 96 . 50 . 50 46 45 . . 26 . Total Orders 1 | . . . . . . . . . . . . . . . . . . 1 . . . . STAY 1 | . . . . . . . . . . . . . . . . . . 1 . . . . Ally Attacks 504 | . . . 8 . . 42 14 113 79 16 45 20 . . . 91 76 . . . . . Total Damage 12542 | . . . 123 . . 610 136 2831 2534 480 1118 615 . . . 2755 1340 . . . . . Kills 96 | . . . 2 . . 9 2 18 24 5 14 2 . . . 11 9 . . . . . Allies Corrupted 2 | . . . . . . . . . . . . . . . . . 1 1 . . . . Allies Melted . | . . . . . . . . . . . . . . . . . . . . . . . Intel | -11 -10 -9 -9 -8 -7 -7 -6 -6 -6 -6 -6 -5 -4 -4 -4 -4 -3 -3 -2 -2 -2 -1 ------- Run | Scr Mat Mat Min Mat Fac Sto Fac Ext Cet Arc Hub Fac Fac Was Fac DSF Res Tes Res Qua Sec Acc Robot Analysis Total 2 | . 2 . . . . . . . . . . . . . . . . . . . . . Derelict Logs Recovered 1 | . . . 1 . . . . . . . . . . . . . . . . . . . Drone Launches . | . . . . . . . . . . . . . . . . . . . . . . . Drone Recoveries . | . . . . . . . . . . . . . . . . . . . . . . . Exploration | -11 -10 -9 -9 -8 -7 -7 -6 -6 -6 -6 -6 -5 -4 -4 -4 -4 -3 -3 -2 -2 -2 -1 ------------- Run | Scr Mat Mat Min Mat Fac Sto Fac Ext Cet Arc Hub Fac Fac Was Fac DSF Res Tes Res Qua Sec Acc Turns Passed 12052 | 60 403 661 473 745 766 999 322 1348 772 194 467 730 285 609 4 269 1083 346 75 340 659 442 Spaces Moved 7627 | 38 210 334 258 250 349 573 185 620 276 86 235 263 132 310 3 112 538 784 151 494 597 829 Core 835 | 14 . . . . . . . . . . . . . . . . . . . . 274 547 Treads 3821 | 24 199 283 258 250 165 . 139 620 276 86 235 263 132 310 3 112 376 6 . 6 78 . Legs 98 | . . . . . . . . . . . . . . . . . . . . . 98 . Wheels 865 | . 11 51 . . 184 573 46 . . . . . . . . . . . . . . . Hover 2 | . . . . . . . . . . . . . . . . . . 1 . . 1 . Flight 2006 | . . . . . . . . . . . . . . . . . 162 777 151 488 146 282 Fastest Speed 14 | 50 110 110 160 160 130 130 130 160 160 160 160 160 160 160 160 150 14 22 29 28 40 40 Average Speed 120 | 119 157 152 160 188 183 130 154 160 227 202 160 229 160 160 160 153 113 34 42 62 70 46 Slowest Speed 245 | 160 160 240 160 243 245 130 162 240 240 240 160 240 160 160 160 160 225 160 74 145 240 60 Overloaded Moves 189 | . . . . . . . . . . . . . . . . . 37 54 5 93 . . Propulsion Burnouts . | . . . . . . . . . . . . . . . . . . . . . . . Robots Hopped 54 | . . . . . . . . . . . . . . . . . 14 27 3 4 1 5 Cave-ins Triggered . | . . . . . . . . . . . . . . . . . . . . . . . Exploration Rate (%) 41 | 5 42 32 79 27 11 85 7 77 68 78 42 11 4 90 1 83 24 82 4 43 33 32 Regions Visited 22 Branch Regions 9 Pre-discovered Areas 1 | . . 1 . . . . . . . . . . . . . . . . . . . . Known Exits Taken 6 | . . 1 . . 1 . 1 . . . . . . . 1 . 1 1 . . . . Unknown Exits Taken 13 | 1 1 . 1 1 . 1 . 1 1 1 1 1 . . . . . . 1 1 1 . Scrap Searched 1 | . . . 1 . . . . . . . . . . . . . . . . . . . Spaces Dug 50 | . . . . . . 2 . . 1 . . . . . . 20 22 . . . 4 1 Terrain Destroyed 703 | . . 71 . 9 . 2 . . 1 . 169 19 59 24 . 20 58 145 . . 125 1 Melee . | . . . . . . . . . . . . . . . . . . . . . . . Projectile 146 | . . . . . . 2 . . 1 . 3 9 23 24 . 19 42 . . . 22 1 AOE 550 | . . 71 . 9 . . . . . . 166 10 36 . . . 10 145 . . 103 . Terrain Rammed . | . . . . . . . . . . . . . . . . . . . . . . . Walls Destroyed . | . . . . . . . . . . . . . . . . . . . . . . . Machines Disabled . | . . . . . . . . . . . . . . . . . . . . . . . Actions | -11 -10 -9 -9 -8 -7 -7 -6 -6 -6 -6 -6 -5 -4 -4 -4 -4 -3 -3 -2 -2 -2 -1 --------- Run | Scr Mat Mat Min Mat Fac Sto Fac Ext Cet Arc Hub Fac Fac Was Fac DSF Res Tes Res Qua Sec Acc Total 9315 | 53 256 404 291 395 423 701 213 843 395 107 283 347 173 389 2 192 745 821 159 510 741 872 Wait 563 | . 11 11 17 35 29 15 6 61 83 . 5 29 12 49 . 63 60 19 . 1 37 20 Move 7511 | 37 209 333 257 249 348 572 184 619 275 85 234 262 132 309 2 111 515 735 144 485 594 820 Hop 41 | . . . . . . . . . . . . . . . . . 8 21 3 4 1 4 Pick Up 138 | 10 7 13 1 15 9 13 5 8 12 3 2 6 3 4 . 4 11 4 3 1 2 2 Fast Attach 116 | . 1 2 1 10 . 15 1 10 . 4 3 8 3 2 . 2 11 14 . 3 20 6 Attach 118 | 6 . 5 . 11 8 7 8 9 9 1 4 7 4 . . . 24 3 1 . 6 5 Detach 19 | . . . . 1 1 . . . . . 2 2 1 . . . 3 5 . . 3 1 Swap 39 | . 2 . . 5 . 6 . 1 . 3 2 1 4 . . 1 14 . . . . . Drop 149 | . 5 3 2 15 7 24 4 10 6 10 8 10 3 12 . 5 12 7 3 2 . 1 Fire 476 | . 16 36 12 53 21 49 4 45 10 1 18 18 11 13 . 6 82 8 . 2 66 5 Melee . | . . . . . . . . . . . . . . . . . . . . . . . Ram 11 | . . . . . . . . . . . . . . . . . . . 3 . . 8 Kick 11 | . . . . . . . . . . . . . . . . . . . . . 11 . Crush 42 | . 5 1 1 1 . . 1 3 . . 5 2 . . . . 5 5 2 10 1 . Escape Stasis 6 | . . . . . . . . 2 . . . 2 . . . . . . . 2 . . Rewire 75 | . . . . . . . . 75 . . . . . . . . . . . . . . Trap . | . . . . . . . . . . . . . . . . . . . . . . . Miscellaneous . | . . . . . . . . . . . . . . . . . . . . . . . Route ------- -11/Scrapyard -10/Materials (discovered 2 exits: *Mat / [*Min]) -9/Materials (discovered 3 exits: [*Mat] / *Min x2) -9/Mines -8/Materials -7/Factory (discovered 4 exits: *Sto x2 / Low x2) -7/Storage -6/Factory (discovered 4 exits: *Low x2 / *Ext x2) -6/Extension (discovered 2 exits: *Fac / *Cet) -6/Cetus (discovered 2 exits: *Fac / [*Arc]) -6/Archives (discovered 3 exits: *Fac / *Hub x2) -6/Hub_04(d) (discovered 2 exits: *Fac x2) -5/Factory -4/Factory -4/Waste -4/Factory -4/DSF -3/Research (discovered 2 exits: *Tes x2) -3/Testing -2/Research -2/Quarantine -2/Section 7 -1/Access History --------- Turn | Location | Event 4 | -11/Scrapyard | Discovered new exit (range 16) 61 | -11/Scrapyard | Entered Materials 166 | -10/Materials | Discovered new exit (range 5) 310 | -10/Materials | Discovered new exit (range 16) 314 | -10/Materials | Build established: Mutant 464 | -10/Materials | Entered another Materials area 464 | -9/Materials | Evolved 2 slots: Propulsion x1, Weapon x1 753 | -9/Materials | Build established: Gunner 871 | -9/Materials | Discovered new exit (range 6) 921 | -9/Materials | Identified exit to Mines 1125 | -9/Materials | Entered Mines 1128 | -9/Mines | Received a Mining Laser from a helpful Derelict 1233 | -9/Mines | Learned Materials security intel 1580 | -9/Mines | Discovered new exit (range 11) 1598 | -9/Mines | Entered Materials 1598 | -8/Materials | Evolved 2 slots: Utility x1, Weapon x1 1861 | -8/Materials | Lost 3 parts (2n1u) 1896 | -8/Materials | Build established: Scavenger-Gunner 2159 | -8/Materials | Lost 3 parts (1n2w) 2233 | -8/Materials | Discovered new exit (range 15) 2343 | -8/Materials | Entered Factory 2343 | -7/Factory | Evolved 2 slots: Utility x1, Weapon x1 2468 | -7/Factory | Identified exit to Storage 2468 | -7/Factory | Identified exit to Lower Caves 3109 | -7/Factory | Entered Storage 3625 | -7/Storage | Assisted by bots powering up and referring to "LRC-V3" 3934 | -7/Storage | Build established: Commander-Gunner 4054 | -7/Storage | Garrison activated, responded to threat 4088 | -7/Storage | Discovered new exit (range 15) 4108 | -7/Storage | Entered Factory 4108 | -6/Factory | Accompanied by 4 allies 4108 | -6/Factory | Evolved 2 slots: Propulsion x1, Utility x1 4189 | -6/Factory | Identified exit to Lower Caves 4189 | -6/Factory | Identified exit to Extension 4430 | -6/Factory | Entered Extension 4430 | -6/Extension | Accompanied by 2 allies 4435 | -6/Extension | Build established: Scavenger-Gunner 4588 | -6/Extension | Rescued a captive Derelict 4589 | -6/Extension | Rescued a captive Derelict 4640 | -6/Extension | Rescued a captive Derelict 4642 | -6/Extension | Rescued a captive Derelict 4823 | -6/Extension | Rescued a captive Derelict 4824 | -6/Extension | Rescued a captive Derelict 5183 | -6/Extension | Spotted B-75 Beast 5210 | -6/Extension | Destroyed B-75 Beast 5219 | -6/Extension | Spotted B-75 Beast 5242 | -6/Extension | Destroyed B-75 Beast 5255 | -6/Extension | Disrupted transfer network 5267 | -6/Extension | Lost 3 parts (1n1u1w) 5423 | -6/Extension | Rescued A7 5458 | -6/Extension | Rescued a captive Derelict 5464 | -6/Extension | Rescued a captive Derelict 5466 | -6/Extension | Rescued a captive Derelict 5493 | -6/Extension | Rescued a captive Derelict 5551 | -6/Extension | Rescued a captive Derelict 5680 | -6/Extension | Energy Cycler disabled 5681 | -6/Extension | Rescued a captive Derelict 5681 | -6/Extension | Rescued a captive Derelict 5681 | -6/Extension | Rescued a captive Derelict 5685 | -6/Extension | Rescued a captive Derelict 5690 | -6/Extension | Rescued a captive Derelict 5754 | -6/Extension | Discovered new exit (range 10) 5756 | -6/Extension | Discovered new exit (range 6) 5778 | -6/Extension | Entered Cetus 5778 | -6/Cetus | Accompanied by 8 allies (A7) 5783 | -6/Cetus | Acquired a Cetus Manufacturing Module code from A7 5800 | -6/Cetus | Spotted Cetus Guard 5800 | -6/Cetus | Spotted Cetus Guard 5802 | -6/Cetus | Spotted Cetus Guard 5816 | -6/Cetus | Allies destroyed Cetus Guard 5817 | -6/Cetus | Allies destroyed Cetus Guard 5817 | -6/Cetus | Spotted Cetus Guard 5818 | -6/Cetus | Allies destroyed Cetus Guard 5822 | -6/Cetus | Destroyed Cetus Guard 5933 | -6/Cetus | Escorted A7 to Cetus Mainframe 5972 | -6/Cetus | Discovered new exit (range 15) 6034 | -6/Cetus | Spotted Cetus Guard 6035 | -6/Cetus | Spotted Cetus Guard 6037 | -6/Cetus | Spotted Cetus Guard 6041 | -6/Cetus | Spotted Cetus Guard 6043 | -6/Cetus | Destroyed Cetus Guard 6047 | -6/Cetus | Allies destroyed Cetus Guard 6049 | -6/Cetus | Destroyed Cetus Guard 6051 | -6/Cetus | Allies destroyed Cetus Guard 6060 | -6/Cetus | Discovered new exit (range 16) 6069 | -6/Cetus | Met Revision 17 6069 | -6/Cetus | Destroyed Revision 17 6217 | -6/Cetus | Started Cetus Manufacturing Module 6242 | -6/Cetus | Manufactured an Enhanced Grunt 6267 | -6/Cetus | Manufactured an Enhanced Grunt 6292 | -6/Cetus | Manufactured an Enhanced Grunt 6293 | -6/Cetus | Cetus Manufacturing Module disabled 6550 | -6/Cetus | Entered Archives 6550 | -6/Archives | Accompanied by 4 allies (A7) 6555 | -6/Archives | Received a hacking code to weaken MAIN.C 6611 | -6/Archives | Discovered new exit (range 14) 6643 | -6/Archives | Discovered new exit (range 16) 6666 | -6/Archives | Discovered new exit (range 15) 6744 | -6/Archives | Entered Hub_04(d) 6744 | -6/Hub_04(d) | Accompanied by 3 allies 6943 | -6/Hub_04(d) | Discovered new exit (range 15) 7132 | -6/Hub_04(d) | Discovered new exit (range 10) 7184 | -6/Hub_04(d) | Network Hub disabled 7208 | -6/Hub_04(d) | System corruption reached 10% 7211 | -6/Hub_04(d) | Entered Factory 7211 | -5/Factory | Accompanied by 1 ally 7211 | -5/Factory | Evolved 2 slots: Power x1, Weapon x1 7338 | -5/Factory | Repaired Centrium Heavy Treads 7499 | -5/Factory | Build established: Scavenger-Executioner 7511 | -5/Factory | First assault squad dispatched 7937 | -5/Factory | Discovered new exit (range 3) 7941 | -5/Factory | Entered another Factory area 7941 | -4/Factory | Evolved 2 slots: Propulsion x2 8226 | -4/Factory | Sucked down chute 8226 | -4/Factory | Entered Waste 8244 | -4/Waste | Spotted C-40 Crusher 8257 | -4/Waste | Destroyed C-40 Crusher 8302 | -4/Waste | Destroyed C-40 Crusher 8310 | -4/Waste | Destroyed C-40 Crusher 8318 | -4/Waste | Destroyed C-40 Crusher 8375 | -4/Waste | Spotted C-40 Crusher 8397 | -4/Waste | Destroyed C-40 Crusher 8407 | -4/Waste | Spotted C-40 Crusher 8419 | -4/Waste | Destroyed C-40 Crusher 8458 | -4/Waste | Found Damper Plating 8464 | -4/Waste | Found Damper Plating 8525 | -4/Waste | Warlord forces began an assault 8640 | -4/Waste | Discovered new exit (range 11) 8835 | -4/Waste | Entered Factory 8835 | -4/Factory | Accompanied by 19 allies 8839 | -4/Factory | Identified exit to DSF 8839 | -4/Factory | Entered DSF 8839 | -4/DSF | Accompanied by 19 allies 8879 | -4/DSF | Additional patrols routed to DSF 8971 | -4/DSF | Sterilization system engaged 8991 | -4/DSF | Ambient heat levels rising (+10) 9006 | -4/DSF | Ambient heat levels rising (+10) 9010 | -4/DSF | Discovered new exit (range 13) 9021 | -4/DSF | Ambient heat levels rising (+10) 9036 | -4/DSF | Ambient heat levels rising (+10) 9051 | -4/DSF | Ambient heat levels rising (+10) 9066 | -4/DSF | Ambient heat levels rising (+10) 9081 | -4/DSF | Ambient heat levels rising (+10) 9096 | -4/DSF | Ambient heat levels rising (+10) 9108 | -4/DSF | Entered Research 9108 | -3/Research | Accompanied by 7 allies 9108 | -3/Research | Evolved 2 slots: Utility x2 9172 | -3/Research | Identified exit to Testing 9403 | -3/Research | P-80 Master assimilated allied OD-JAW(g) 9410 | -3/Research | P-80 Master assimilated allied M9-KPI(g) 9733 | -3/Research | Found Prototype Device 9733 | -3/Research | Identified Exp. Focal Shield 9772 | -3/Research | Found Prototype Device 9801 | -3/Research | Found Prototype Processor 9802 | -3/Research | Identified Exp. Signal Interpreter 9858 | -3/Research | First assault squad dispatched 9924 | -3/Research | Found Exp. Signal Interpreter 9933 | -3/Research | Destroyed 9 combat bots 9955 | -3/Research | Spotted B-86 Titan 9967 | -3/Research | Destroyed B-86 Titan 9988 | -3/Research | Destroyed 7 combat bots 10034 | -3/Research | Identified Exp. ECM Suite 10039 | -3/Research | Cargo convoy interrupted 10040 | -3/Research | Spotted Striker 10041 | -3/Research | Spotted Striker 10067 | -3/Research | System corruption reached 10% 10105 | -3/Research | Found Prototype Device 10116 | -3/Research | Core integrity fell below 50% 10166 | -3/Research | Lost 24 parts (3p11n4u6w) 10191 | -3/Research | Entered Testing 10224 | -3/Testing | Found Prototype Launcher 10224 | -3/Testing | Identified Tactical Quantum Warhead 10237 | -3/Testing | Discovered new exit (range 15) 10265 | -3/Testing | Spotted PP-7QT6I7K1J7 10336 | -3/Testing | Core integrity fell below 20% 10361 | -3/Testing | Lost 4 parts (1p1n1u1w) 10371 | -3/Testing | Spotted Striker 10372 | -3/Testing | Spotted Striker 10388 | -3/Testing | Identified exit to Research 10473 | -3/Testing | Lost 3 parts (1p1n1w) 10537 | -3/Testing | Entered Research 10537 | -2/Research | Evolved 2 slots: Utility x2 10606 | -2/Research | Discovered new exit (range 4) 10612 | -2/Research | Entered Quarantine 10715 | -2/Quarantine | Build established: Mutant 10878 | -2/Quarantine | Scanned by Researcher 10924 | -2/Quarantine | Spotted Fortress 10950 | -2/Quarantine | Discovered new exit (range 6) 10952 | -2/Quarantine | Entered Section 7 10956 | -2/Section 7 | Lost 3 parts (1n2w) 10988 | -2/Section 7 | Spotted B-90 Cyclops 11319 | -2/Section 7 | Core integrity fell below 50% 11374 | -2/Section 7 | Found Alien Artifact 11374 | -2/Section 7 | Identified Integrity Redistributor 11374 | -2/Section 7 | Used Integrity Redistributor, redistributed integrity to core (+89) 11387 | -2/Section 7 | Lost 11 parts (1p5n2u3w) 11431 | -2/Section 7 | Garrison activated, responded to threat 11435 | -2/Section 7 | System corruption reached 10% 11492 | -2/Section 7 | Lost 9 parts (2p2n2u3w) 11587 | -2/Section 7 | Spotted S7 Guard 11595 | -2/Section 7 | Core integrity fell below 20% 11603 | -2/Section 7 | Discovered new exit (range 15) 11611 | -2/Section 7 | Entered Access 11611 | -1/Access | Evolved 2 slots: Power x1, Utility x1 11736 | -1/Access | Found Prototype Processor 11736 | -1/Access | Identified Exp. Target Analyzer 11780 | -1/Access | Spotted B-99 Colossus 11908 | -1/Access | Search patrols dispatched 11963 | -1/Access | Core integrity fell below 50% 12008 | -1/Access | Spotted B-99 Colossus 12010 | -1/Access | Spotted B-99 Colossus 12033 | -1/Access | Core integrity fell below 20% 12053 | -1/Access | Destroyed by P-80 Master with Gamma Rifle Last Messages --------------- 12021_ Penetrated by Slug. 12023_ Slug penetrates Sealed Heavy Doors. 12023_ Penetrated by Slug. 12023_ Slug penetrates Sealed Heavy Doors. 12025_ Adv. Heavy Siege Treads destroyed. 12025_ Enh. Nova Cannon destroyed. 12025_ Penetrated by Slug. 12026_ P-80 Master resets B-99 Colossus, system corruption cleaned. 12028_ Penetrated by Slug. 12028_ Slug penetrates Sealed Heavy Doors. 12028_ Exp. Target Analyzer destroyed. 12028_ Penetrated by Slug. 12032_ Slug penetrates Sealed Heavy Doors. 12032_ Penetrated by Slug. 12032_ Slug penetrates Sealed Heavy Doors. 12035_ Cld. Phase Gun destroyed. 12036_ Acquired 3 matter. 12037_ B-99 Colossus exits siege mode. 12037_ Acquired 2 matter. 12045_ Dropped Lrn. Sensor Array. Map ----- +----------------------------------------------------+ | ??????????????????????# !!! ?? | | ??????????????????????# ] #? | | ??????????????????????# % ?? | | ??????????????????????# ?? | | ??????????????????????# ##########+###### ?? | | ??????????????????????# % # ???????????????? ??? | | ???????????????????#### "###??????????????? ??? | | ???????????????????# % #??????????????????? | | ???????????????????# #??????????????????? | | ???????????????????# #??????????????????? | | ???????????????????# #??????????????????? | | ???????????????????# #??????????????????? | | ???????????????????# %% % #??????????????????? | | ???????????????????# % % #??????????????????? | | ???????????????????#""""%%""""#??????????????????? | | ??????????????????????"" "??????????????????????? | | ??????????????????????" """??????????????????????? | | ???????????????????#""" """"""#??????????????????? | | ???????????????????# % #??????????????????? | | ???????????????????# """""" #??????????????????? | | ???????????????????# ?????" #??????????????????? | | ???????????????????# ??????" #??????????????????? | | ???????????????????#???????" #??????????????????? | | ???????????????????????????" #??????????????????? | | ???????????????????# """""" #??????????????????? | | ???????????????????# @ p #??????????????????? | | ???????????????????# p #??????????????????? | | ???????????????????""""""""""""??????????????????? | | ?????????????????????????????????????????????????? | | ?????????????????????????????????????????????????? | | ?????????????????????????????????????????????????? | | ?????????????????????????????????????????????????? | | ?????????????????????????????????????????????????? | | ?????????????????????????????????????????????????? | | ?????????????????????????????????????????????????? | | ?????????????????????????????????????????????????? | | ?????????????????????????????????????????????????? | | ?????????????????????????????????????????????????? | | ?????????????????????????????????????????????????? | | ?????????????????????????????????????????????????? | | ?????????????????????????????????????????????????? | | ?????????????????????????????????????????????????? | | ?????????????????????????????????????????????????? | | ?????????????????????????????????????????????????? | | ?????????????????????????????????????????????????? | | ?????????????????????????????????????????????????? | | ?????????????????????????????????????????????????? | | ?????????????????????????????????????????????????? | | ?????????????????????????????????????????????????? | | ?????????????????????????????????????????????????? | +----------------------------------------------------+ Best States ------------- Heat Dissipation 100 Coolant Potential 65 Energy Generation 45 Energy Capacity 600 Matter Stores 300 Matter Capacity 300 Sight Range 16 Robot Scan Range 18 Terrain Scan Density 10 Armor Coverage 1600 Resistance: KI 30 Resistance: EM 90 Weapon Cycling 20 Evasion (%) 65 Targeting Accuracy 6 Target Analysis 14 Armor Integrity Analysis 30 Recoil Reduction 6 Offensive Hacking 10 Defensive Hacking 14 Item Schematics ----------------- Imp. Coolant Injector | -7/Storage | Hacked Huge Storage Unit | -6/Extension | Hacked Biometal Heavy Treads | -3/Testing | Hacked Robot Schematics ------------------ None Fabricated ------------ Nothing Alien Tech Used ----------------- Integrity Redistributor Achievements -------------- None Challenges ------------ None Game ------ Seed MasterMolecularActivator Manual? 0 Play Time 01:54:04 Cumulative 587.6 hours Start 2022.03.31 @ 17:00:24 End 2022.03.31 @ 19:09:09 Sessions 1 Manual Loads 0 Difficulty Rogue Special Mode None Game No. 406 Rogue 399 Adventurer 0 Explorer 7 Win Type - Total 34 Types 10/4/13/2/0/1/2/1/1 Lore% 84 Gallery% 93 Achievement% 82 Wizard Run 0 Options --------- ASCII 0 Keyboard 0 Movement Numpad Keybinds 0 Fullscreen 1 Font 18/X11Bold Map View 76x50 Tactical HUD 1 Map Filters NONE Filters NONE Steam 1 RUN: 703444a1-3498-45f3-ba55-b81be9a59755